Cogmind - Beta 13 @@@ ROGUE MODE // 2024.05.23 @ 01:04:12 Player: lucky255 Result: Destroyed by H1-W35(R) with Subdweller Beam Cannon Performance ------------- Evolutions (0) 0 Regions Visited (2) 400 Robots Destroyed (17) 85 Value Destroyed (310) 310 Prototype IDs (3) 60 Alien Tech Used (0) 0 Bonus (0) 0 TOTAL SCORE: 855 Bonus ------- None Cogmind --------- Core Integrity 0/250 Matter 224/300 Energy 100/100 System Corruption 1% Temperature Cool (9) Movement Treading (320) Ox2 Location -10/Subcaves Parts ------- > --- POWER (1) -------- Subdweller Power Source > --- PROPULSION (2) --- Light Treads Light Treads > --- UTILITY (2) ------ Huge Storage Unit > --- WEAPON (2) ------- Light Assault Rifle Light Assault Rifle > --- INVENTORY (25) --- Light Ion Engine Light Treads Aluminum Leg Aluminum Leg Heat Sink Disposable Heat Sink Medium Storage Unit Structural Scanner Subdweller Optics Subdweller Optics Sensor Array Signal Interpreter Seismic Detector Scrap Shield Scrap Shield Scrap Shield Tractor Beam Light Assault Rifle Scrap Shield Fragment (45) Peak State ------------ > --- POWER ------------ Subdweller Power Source > --- PROPULSION ------- Light Treads Light Treads > --- UTILITY ---------- Huge Storage Unit Propulsion Shielding > --- WEAPON ----------- Battle Rifle Battle Rifle > --- INVENTORY -------- Light Ion Engine Light Treads Light Treads Aluminum Leg Aluminum Leg Heat Sink Disposable Heat Sink Medium Storage Unit Structural Scanner Subdweller Optics Subdweller Optics Sensor Array Signal Interpreter Seismic Detector Scrap Shield Scrap Shield Tractor Beam Light Assault Rifle Light Assault Rifle Light Assault Rifle Scrap Shield Fragment [Rating: 13] Favorites ----------- Power Light Ion Engine Engine Light Ion Engine Propulsion Light Treads Treads Light Treads Leg Aluminum Leg Utility Structural Scanner Device Structural Scanner Storage Huge Storage Unit Protection Propulsion Shielding Weapon Light Assault Rifle Energy Gun Medium Laser Ballistic Gun Light Assault Rifle Build | -11 -10 -10 ------- Run | Yrd Mat Sub Slots Evolved . | . . . Power . | . . . Propulsion . | . . . Utility . | . . . Weapon . | . . . Parts Attached 34 | 1 15 18 Power 6 | . 4 2 Engine 6 | . 4 2 Core . | . . . Reactor . | . . . Propulsion 9 | . 7 2 Treads 7 | . 5 2 Leg 2 | . 2 . Wheel . | . . . Hover . | . . . Flight . | . . . Utility 9 | . 3 6 Device 3 | . 1 2 Storage 2 | . 2 . Processor . | . . . Hackware . | . . . Protection 4 | . . 4 Artifact . | . . . Weapon 10 | 1 1 8 Energy Gun 2 | . . 2 Energy Cannon . | . . . Ballistic Gun 8 | 1 1 6 Ballistic Cannon . | . . . Launcher . | . . . Special Weapon . | . . . Impact Weapon . | . . . Slashing Weapon . | . . . Piercing Weapon . | . . . Special Melee Weapon . | . . . Unidentified Prototypes 1 | . 1 . Parts Lost 9 | . . 9 Power 1 | . . 1 Propulsion 2 | . . 2 Utility 2 | . . 2 Weapon 4 | . . 4 Highest Loss Streak 4 | . . 4 To Critical Strikes . | . . . Average Slot Usage (%) 99 | . 99 98 Engine 13 | . 13 14 Treads 19 | . 15 27 Leg 8 | . 12 . Device 11 | . 13 6 Storage 14 | . 14 14 Protection 2 | . . 7 Ballistic Gun 27 | . 28 25 Naked Turns . | . . . Heaviest Build 90 | 12 86 90 Greatest Support 40 | 20 40 40 Greatest Overweight (x) 4 | . 4 2 Average Overweight (x) . | . . 2 Largest Inventory Capacity 25 | 8 25 25 Average Capacity 19 | 8 17 25 Most Carried 25 | 6 17 25 Average Carried 14 | 6 12 20 Final Capacity 25 | 8 25 25 Final Carried 22 | 6 17 22 Class Distribution -------------------- 100% | Mutant Dominant Class ---------------- Mutant | -10/Materials Mutant | -10/Subcaves Resources | -11 -10 -10 ----------- Run | Yrd Mat Sub Matter Collected 632 | 181 246 205 Remotely . | . . . Salvage Created 589 | . 297 292 Parts 35 | . 19 16 Haulers Intercepted 1 | . 1 . Recyclers Shooed . | . . . Parts Field Recycled . | . . . Retrieved Matter . | . . . Parts Self-Destructed 8 | . . 8 Prevented . | . . . Kills | -11 -10 -10 ------- Run | Yrd Mat Sub Combat Hostiles Destroyed 13 | . 5 8 Guns 13 | . 5 8 Classes Destroyed 5 | . 4 1 Hauler 1 | . 1 . Recycler 2 | . 2 . Watcher 1 | . 1 . Swarmer 8 | . 5 3 Subdweller 5 | . . 5 Best Kill Streak 3 | . 2 3 Combat Bots Only 3 | . 2 3 Max Kills in Single Turn 1 | . 1 1 Gunslinging . | . . . Exploded . | . . . Melee . | . . . Uniques/NPCs Destroyed . | . . . Combat | -11 -10 -10 -------- Run | Yrd Mat Sub Hostile Shots Fired 133 | . 33 100 Missed 38 | . 9 29 Damage Taken 1561 | . 202 1359 Core 277 | . 46 231 Absorbed by Shields . | . . . Redirected to Shielding 106 | . . 106 Core Remaining (%) 100 | 100 . . Volleys Fired 78 | . 33 45 Largest 2 | . 2 2 Hottest 90 | . 40 90 Shots Fired 154 | . 67 87 Gun 154 | . 67 87 Cannon . | . . . Launcher . | . . . Special . | . . . Kinetic 135 | . 67 68 Thermal 10 | . . 10 Explosive . | . . . Electromagnetic 9 | . . 9 Robot Hit Streak 15 | . 4 15 Robot Miss Streak 4 | . 3 4 Penetration Max . | . . . Secondary Targets 3 | . 1 2 Max Gunslinging Chain 1 | . 1 1 Shots Hit Robots 104 | . 37 67 Core Hits 34 | . 14 20 Critical Kills 2 | . 1 1 Critical Parts Destroyed . | . . . Critical Strikes 4 | . 1 3 Burn 1 | . . 1 Destroy 2 | . 1 1 Corrupt 1 | . . 1 Melee Attacks . | . . . Impact . | . . . Slashing . | . . . Piercing . | . . . Sneak Attacks . | . . . Combat Hostiles . | . . . Follow-up Attacks . | . . . Damage Inflicted 1114 | . 314 800 Guns 1114 | . 314 800 Cannons . | . . . Explosions . | . . . Melee . | . . . Ramming . | . . . Kinetic 909 | . 314 595 Thermal 111 | . . 111 Explosive . | . . . Electromagnetic 94 | . . 94 Impact . | . . . Slashing . | . . . Piercing . | . . . Highest Corruption 1 | . 1 1 Average Corruption 1 | . 1 1 Corruption Purged . | . . . Corruption Blocked . | . . . Effects 13 | . 5 8 Message Errors 1 | . . 1 Heat Flow Errors 4 | . 1 3 Energy Discharges 5 | . 3 2 Data Loss (major) 2 | . . 2 Misfires 1 | . 1 . Overload Shots . | . . . Overflow Damage . | . . . Projectiles . | . . . Explosions . | . . . Melee . | . . . Knockbacks . | . . . Impact . | . . . Kinetic . | . . . Secondary . | . . . Self-Inflicted Damage . | . . . Shots . | . . . Rammed . | . . . Targets Rammed . | . . . Kicked . | . . . Crushed . | . . . Highest Temperature 197 | . 166 197 Average Temperature 80 | . 79 80 Received Heat Transfer 363 | . . 363 Siege Activations . | . . . Robots Corrupted . | . . . Combat Hostiles . | . . . Parts Fried . | . . . Impact Corruptions . | . . . Robots Melted . | . . . Combat Hostiles . | . . . Parts Melted 2 | . . 2 Heat Transferred 407 | . . 407 Parts Sabotaged . | . . . Parts Stolen . | . . . Parts Stripped . | . . . Power Chain Reactions . | . . . Alert | -11 -10 -10 ------- Run | Yrd Mat Sub Peak Influence 198 | . 198 . Initial . | . . . Average 27 | . 28 . Maximum Alert Level . | . . . Low Security (%) 100 | 100 100 . Level 1 . | . . . Level 2 . | . . . Level 3 . | . . . Level 4 . | . . . Level 5 . | . . . High Security . | . . . Max Security . | . . . Squads Dispatched . | . . . Investigation . | . . . Extermination . | . . . Reinforcement . | . . . Assault . | . . . Garrison . | . . . Intercept . | . . . Searches Triggered . | . . . Construction Impeded . | . . . Haulers Reinforced . | . . . Active Scanning Responses . | . . . Cargo Convoy Interrupts . | . . . Stealth | -11 -10 -10 --------- Run | Yrd Mat Sub Distress Signals . | . . . Communications Jammed . | . . . Distress Signals . | . . . Times Spotted 23 | . 14 9 Peak Tracking Total 5 | . 5 3 Tactical Retreats 1 | . 1 . Traps | -11 -10 -10 ------- Run | Yrd Mat Sub Traps Triggered 3 | . 3 . Indirectly . | . . . Trap Hack Attempts . | . . . Triggered . | . . . Disarmed . | . . . Reprogrammed . | . . . Reused . | . . . Traps Extracted . | . . . Installed . | . . . Triggered . | . . . Machines | -11 -10 -10 ---------- Run | Yrd Mat Sub Machines Disabled . | . . . Max in Single Turn . | . . . Machines Repaired . | . . . Machines Dismantled . | . . . Machines Sabotaged . | . . . Overloaded Fab Kills . | . . . Hacking | -11 -10 -10 --------- Run | Yrd Mat Sub Machines Accessed 5 | . 5 . Terminals 4 | . 4 . Fabricators . | . . . Repair Stations . | . . . Recycling Units 1 | . 1 . Scanalyzers . | . . . Garrison Access . | . . . Total Hacks 12 | . 12 . Successful 4 | . 4 . Failed 8 | . 8 . Catastrophic 2 | . 2 . Database Lockouts . | . . . Manual 5 | . 5 . Terminals 11 | . 11 . Fabricators . | . . . Repair Stations . | . . . Recycling Units 1 | . 1 . Scanalyzers . | . . . Garrison Access . | . . . Terminal Hacks 3 | . 3 . Robot Analysis 1 | . 1 . Prototype ID Bank 1 | . 1 . Hauler Manifests 1 | . 1 . Fabricator Hacks . | . . . Repair Station Hacks . | . . . Recycling Unit Hacks 1 | . 1 . Report Inventory 1 | . 1 . Scanalyzer . | . . . Garrison Access Hacks . | . . . Unauthorized Hacks . | . . . Terminals . | . . . Fabricators . | . . . Repair Stations . | . . . Recycling Units . | . . . Scanalyzers . | . . . Garrison Access . | . . . Data Cores Recovered . | . . . Used . | . . . Hacking Detections 4 | . 4 . Full Trace Events . | . . . Feedback Events . | . . . Feedback Blocked . | . . . Robot Schematics Acquired . | . . . Robots Built . | . . . Authchips . | . . . Time . | . . . Total Robot Build Rating . | . . . Part Schematics Acquired . | . . . Parts Built . | . . . Authchips . | . . . Time . | . . . Total Part Build Rating . | . . . Parts Repaired . | . . . Time . | . . . Parts Recycled . | . . . Recycled Matter . | . . . Retrieved Matter . | . . . Retrieved Components . | . . . Parts Scanalyzed . | . . . Part Schematics Acquired . | . . . Parts Damaged . | . . . Bothacking | -11 -10 -10 ------------ Run | Yrd Mat Sub Used RIF Installer . | . . . Robots Hacked . | . . . Non-combat . | . . . Combat . | . . . Robot Hacks Applied . | . . . Relay Couplers Released . | . . . Fabnet Peak Effective % . | . . . Robots Rewired . | . . . Allies Hacked . | . . . Hacks Repelled . | . . . Allies | -11 -10 -10 -------- Run | Yrd Mat Sub Total Allies . | . . . Largest Group . | . . . Highest-Rated Group . | . . . Highest-Rated Ally . | . . . Total Orders . | . . . Ally Attacks . | . . . Total Damage . | . . . Kills . | . . . Allies Corrupted . | . . . Allies Melted . | . . . Intel | -11 -10 -10 ------- Run | Yrd Mat Sub Robot Analysis Total 1 | . 1 . Derelict Logs Recovered . | . . . Drone Launches . | . . . Drone Recoveries . | . . . Exploration | -11 -10 -10 ------------- Run | Yrd Mat Sub Turns Passed 2038 | 53 1317 668 Spaces Moved 798 | 25 613 160 Core . | . . . Treads 374 | . 214 160 Legs 424 | 25 399 . Wheels . | . . . Hover . | . . . Flight . | . . . Fastest Speed 120 | 120 120 320 Average Speed 215 | 120 191 320 Slowest Speed 480 | 120 480 320 Overloaded Moves . | . . . Propulsion Burnouts . | . . . Robots Hopped . | . . . Cave-ins Triggered . | . . . Exploration Rate (%) 30 | 3 79 9 Regions Visited 2 Branch Regions 1 Pre-discovered Areas . | . . . Known Exits Taken . | . . . Unknown Exits Taken 2 | 1 1 . Scrap Searched 1 | . . 1 Spaces Dug . | . . . Terrain Destroyed . | . . . Melee . | . . . Projectile . | . . . AOE . | . . . Terrain Rammed . | . . . Walls Destroyed . | . . . Machines Disabled . | . . . Actions | -11 -10 -10 --------- Run | Yrd Mat Sub Total 984 | 47 703 234 Wait 37 | 22 13 2 Move 796 | 24 612 160 Hop . | . . . Pick Up 28 | . 19 9 Fast Attach 4 | . 4 . Attach 8 | . . 8 Detach . | . . . Swap 22 | 1 11 10 Drop 11 | . 11 . Fire 78 | . 33 45 Melee . | . . . Ram . | . . . Kick . | . . . Crush . | . . . Escape Stasis . | . . . Rewire . | . . . Trap . | . . . Miscellaneous . | . . . Route ------- -11/Scrapyard -10/Materials (discovered 4 exits: [*Mat x2] / [*Min] / [*Sub]) -10/Subcaves History --------- Turn | Location | Event 3 | -11/Scrapyard | Discovered new exit (range 3) 54 | -11/Scrapyard | Entered Materials 219 | -10/Materials | Discovered new exit (range 16) 334 | -10/Materials | Build established: Mutant 443 | -10/Materials | Discovered new exit (range 15) 716 | -10/Materials | Discovered new exit (range 16) 1206 | -10/Materials | Discovered new exit (range 8) 1371 | -10/Materials | Entered Subcaves 1472 | -10/Subcaves | Lost 4 parts (1p1u2w) 1712 | -10/Subcaves | Core integrity fell below 50% 2011 | -10/Subcaves | Core integrity fell below 20% 2039 | -10/Subcaves | Destroyed by H1-W35(R) with Subdweller Beam Cannon Last Messages --------------- 01745_ Acquired 53 matter. 01759_ Acquired 52 matter. 01766_ Acquired Disposable Heat Sink. 01770_ Acquired Sub. Optics. 01771_ Subatomizers dissect the Sub. Monowheel. 01781_ Acquired Scrap Shield. 01790_ System corrupted: Heat flow error (+237). 01835_ System corrupted: Energy discharge (-62). 01911_ Subatomizers dissect the Sub. Monowheel. 01919_ Sub. Power Source shoots sparks and powers down. 01924_ Subatomizers dissect the Sub. Monowheel. 01980_ Battle Rifle destroyed. 01980_ Lgt. Treads destroyed. 02015_ 0M-QZH(R) destroyed. 02018_ Battle Rifle destroyed. 02024_ H1-W35(R) affixes Scrap Shield Fragment to Scrap Shield. 02029_ Propulsion Shielding destroyed. Map ----- +----------------------------------------------------+ | ???????????????##### ##### ##???????????????? | | ???????????????##### #########???????????????? | | ???????????????## ###??####???????????????? | | ???????????????## ##??????????????????????? | | ???????????????## #######?????????????????? | | ??????????####### " ########????????????????? | | ??????????####### "" ###????????????????? | | ?????????### "" ????????????????? | | ##???????### "" "??????????????????? | | #???????## " # "?????????????????? | | #???????### ##### ?????????????????? | | #####???#### #####" ????????????????? | | # ######## ##?????????????????????? | | ##### ### ###?????????????????????? | | ## ######### ####?????????????????????? | | ### ######## ####??????????????????????? | | #### ## ##### #####???????????????????????? | | #?### ### ####????????????????????????? | | ##??### ### ##?????????????????????????? | | #??### # ##?????????????????????????? | | "" ##### ##?????????????????????????? | | """""" ###????????????????????????? | | # # ###= # ###### ###???????????????????????? | | ?################### R=;##??????????????????????? | | ?######?########??## [%& ###????????????????????? | | ??????????????????## ## @ ##???????????????????? | | ??????????????????# #### ###???????????????????? | | ?????????????????## #########???????????????????? | | ?????????????????# ######????????????????????? | | ?????????????????# #?????????????????????????? | | ?????????????????# #?????????????????????????? | | ?????????????????## #?????????????????????????? | | ??????????????????# ##?????????????????????????? | | ??????????????????# ##??????????????????????????? | | ??????????????????# #???????????????????????????? | | ?????????????????? ???????????????????????????? | | ??????????????????# ???????????????????????????? | | ??????????????????# ???????????????????????????? | | ?????????????????? ##??????????????????????????? | | ??????????????????# #???????????????????????????? | | ??????????????????? ???????????????????????????? | | ??????????????????? ???????????????????????????? | | ??????????????????? ???????????????????????????? | | ??????????????????? ???????????????????????????? | | ??????????????????? ???????????????????????????? | | ?????????????????????????????????????????????????? | | ?????????????????????????????????????????????????? | | ?????????????????????????????????????????????????? | | ?????????????????????????????????????????????????? | | ?????????????????????????????????????????????????? | +----------------------------------------------------+ Best States ------------- Heat Dissipation 25 Energy Generation 15 Energy Capacity 250 Matter Stores 300 Matter Capacity 300 Sight Range 16 Robot Scan Range 14 Terrain Scan Density 10 Propulsion Shielding 33 Evasion (%) 55 Recoil Reduction 2 Item Schematics ----------------- None Robot Schematics ------------------ None Fabricated ------------ Nothing Alien Tech Used ----------------- None Achievements -------------- None Challenges ------------ None Game ------ Seed SiegePointyStabilizer Manual? 0 Play Time 00:19:47 Cumulative 19.0 hours Start 2024.05.23 @ 00:45:11 End 2024.05.23 @ 01:04:12 Sessions 1 Manual Loads 0 Difficulty Rogue Special Mode None Game No. 16 Rogue 16 Adventurer 0 Explorer 0 Win Type - Total 0 Types 0/0/0/0/0/0/0/0/0 Lore% 19 Gallery% 20 Achievement% 19 Wizard Run 0 Options --------- Layout 2 ASCII 0 Keyboard 1 Movement Numpad Keybinds 0 Fullscreen 2 Font 24/X11 Map View 50x44 Zoom Use 0% Tactical HUD 1 Map Filters NONE Filters NONE Steam 1 RUN: 61cfd034-0f70-432a-973d-957d0186a686